{"text_format":"1","workbook":"xlsx","n_sheets":2,"sheets":["Calendar","Data"],"not_rendered":{"charts":0,"images":2,"macros":1,"external_links":1,"defined_names":4,"comments":0,"pivot_tables":1},"unopened":[],"bounds":{"document_bytes":16777216,"sheet_cells":100000,"rows_first":2000,"rows_last":500,"rows_between":2000,"halvings":0,"cell_chars":16384,"cell_head_chars":4096},"cells_cut":0,"cells_raw":0,"read":"whole","date_system":"1900"}

{"sheet":"Calendar","index":0,"n_rows":80,"n_cols":20,"rows_kept":80,"cut":false,"hidden":false,"merged":[[69,7,69,17],[78,7,78,17],[79,7,79,17],[80,7,80,17],[70,7,70,17],[77,7,77,17],[75,7,75,17],[74,7,74,17],[72,7,72,17],[71,7,71,17],[76,7,76,18],[73,7,73,18],[4,7,4,14],[13,2,13,3],[13,4,13,5],[21,2,24,5],[25,2,25,5],[7,2,12,5],[5,7,5,15]]}
[]
[]
[]
[]
[null,null,null,null,null,null,null,"Cattle Health and Husbandry Calendar for Fixed Calving Systems"]
[null,null,null,null,null,null,null,"Disclaimer: The information contained in this publication is based on knowledge and understanding at the time of writing (May 2021). However, because of advances in knowledge, users are reminded of the need to ensure that the information upon which they rely is up to date and to check the currency of the information through an approtiate Local Land Services staff member or the user’s independent adviser."]
[]
[null,null,"Instructions: type in your calving date, hit enter and the table will update. Use as a yearly calendar, or use the filters below, for activities based on category or month.  Make sure you enable macros.",null,null,null,null,"Count of Date","Column Labels"]
[null,null,null,null,null,null,null,"01/04/21","Jan","Feb","Mar","Apr","May","Jun","Jul","Aug","Sep","Oct","Nov","Dec"]
[null,null,null,null,null,null,null,"Bull - existing"]
[null,null,null,null,null,null,null,"Start feeding if required to reach target fat score 3 at joining",null,null,1]
[null,null,null,null,null,null,null,"Worm test, stomach fluke test, liver fluke test. Treat if required",null,null,1]
[null,null,null,null,null,null,null,"BBSE and cull if sub-fertile",null,null,null,null,null,1]
[null,null,"Calving State Date:",null,"2021-07-01",null,null,"Remove Buffalo fly tags if using",null,null,null,1,1]
[null,null,null,null,null,null,null,"Worm test. Drench if required",null,null,null,null,null,null,null,1]
[null,null,null,null,null,null,null,"Booster vaccination for 7-in-1, vibriosis, pestivirus & botulism ",null,null,null,null,null,null,null,1]
[null,null,null,null,null,null,null,"Joining - heifers (see notes)",null,null,null,null,null,null,null,1]
[null,null,null,null,null,null,null,"Joining - cows",null,null,null,null,null,null,null,null,1]
[null,null,null,null,null,null,null,"3 day sickness vaccination",null,null,null,null,null,null,null,null,null,1]
[null,null,null,null,null,null,null,"Remove from cows",null,null,null,null,null,null,null,null,null,null,null,1]
[null,null,null,null,null,null,null,"Monitor for buffalo fly  (see notes)",1,1,1,null,null,null,null,null,null,null,null,1]
[null,null,null,null,null,null,null,"Bull - new"]
[null,null,null,null,null,null,null,"Research new bulls and prepare for new bull purchase (see notes)",null,null,null,null,null,1]
[null,null,null,null,null,null,null,"Purchase new bull (see notes)",null,null,null,null,null,null,1]
[null,null,null,null,null,null,null,"Primary vaccination for 7-in-1, vibriosis, pestivirus, botulism, 3 day sickness (see notes)",null,null,null,null,null,null,1]
[null,null,null,null,null,null,null,"Worm test. Drench if required",null,null,null,null,null,null,null,1]
[null,null,null,null,null,null,null,"Joining - heifers (see notes)",null,null,null,null,null,null,null,1]
[null,null,null,null,null,null,null,"Booster vaccination for 7-in-1, vibriosis, pestivirus, botulism, 3 day sickness (see notes)",null,null,null,null,null,null,null,1]
[null,null,null,null,null,null,null,"Joining - cows",null,null,null,null,null,null,null,null,1]
[null,null,null,null,null,null,null,"Cows"]
[null,null,null,null,null,null,null,"Monitor for buffalo fly (see notes)",1,1,1,null,null,null,null,null,null,null,null,1]
[null,null,null,null,null,null,null,"Monitor for pinkeye and 3 day sickness",1,1,null,null,null,null,null,null,null,null,null,1]
[null,null,null,null,null,null,null,"Dry years - assess breeder condition and consider early weaning if required.Aim for fat score 2.5 - 3",1]
[null,null,null,null,null,null,null,"Start feeding if required to reach target fat score 3 at joining",null,null,1]
[null,null,null,null,null,null,null,"Worm test, stomach fluke test, liver fluke test. Treat if required",null,null,1]
[null,null,null,null,null,null,null,"Remove Buffalo fly tags if using",null,null,null,1,1]
[null,null,null,null,null,null,null,"Pregnancy test (see notes)",null,null,1]
[null,null,null,null,null,null,null,"Wean calves (see notes)",null,null,1]
[null,null,null,null,null,null,null,"Vaccinate.  7-in-1, botulism (see notes)",null,null,null,null,null,1]
[null,null,null,null,null,null,null,"Calving (see notes)",null,null,null,null,null,null,1]
[null,null,null,null,null,null,null,"Joining",null,null,null,null,null,null,null,null,1]
[null,null,null,null,null,null,null,"Remove bull",null,null,null,null,null,null,null,null,null,null,null,1]
[null,null,null,null,null,null,null,"Heifers"]
[null,null,null,null,null,null,null,"Monitor for buffalo fly (see notes)",1,1,1,null,null,null,null,null,null,null,null,1]
[null,null,null,null,null,null,null,"Start feeding if required to reach target critical mating weight (see notes)",null,null,1]
[null,null,null,null,null,null,null,"Worm test, stomach fluke test, liver fluke test",null,null,1]
[null,null,null,null,null,null,null,"Remove Buffalo fly tags if using",null,null,null,1,1]
[null,null,null,null,null,null,null,"Joining (see notes)",null,null,null,null,1]
[null,null,null,null,null,null,null,"Vaccinate.  7-in-1, botulism (see notes)",null,null,null,null,null,1]
[null,null,null,null,null,null,null,"Calving",null,null,null,null,null,null,1]
[null,null,null,null,null,null,null,"Pregnancy test",null,null,null,null,null,null,null,null,null,null,1]
[null,null,null,null,null,null,null,"Remove bull",null,null,null,null,null,null,null,null,null,null,null,1]
[null,null,null,null,null,null,null,"Calves"]
[null,null,null,null,null,null,null,"Wean",null,null,1]
[null,null,null,null,null,null,null,"Primary vaccination for 5-in-/7-in-1",null,null,null,null,null,null,null,null,null,1]
[null,null,null,null,null,null,null,"Ear mark, NLIS and management tag",null,null,null,null,null,null,null,null,null,null,1]
[null,null,null,null,null,null,null,"Castrate and dehorn male calves",null,null,null,null,null,null,null,null,null,null,1]
[null,null,null,null,null,null,null,"Booster vaccination for 5-in-1/7-in-1",null,null,null,null,null,null,null,null,null,null,1]
[null,null,null,null,null,null,null,"Pastures"]
[null,null,null,null,null,null,null,"Consider conserving fodder by baling excess pasture",null,1]
[null,null,null,null,null,null,null,"Sow winter feed (e.g. ryegrass, oats)",null,null,1]
[null,null,null,null,null,null,null,"Assess pasture levels",null,null,null,null,null,1]
[null,null,null,null,null,null,null,"Select a calving pasture",null,null,null,null,null,1]
[null,null,null,null,null,null,null,"Assess pasture levels and cattle body condition, particularly if dry (see notes)",null,null,null,null,null,null,null,null,1]
[null,null,null,null,null,null,null,"Supplementary Feed"]
[null,null,null,null,null,null,null,"Consider supplementary feeding if there is a feed gap, or if breeder fat scores are below target",null,null,null,null,null,null,null,null,1,null,null,1]
[null,null,null,null,null,null,null,"Yearling steers"]
[null,null,null,null,null,null,null,"Booster vaccination for 5-in-1 ",null,null,null,null,null,null,null,null,1]
[null,null,null,null,null,null,null,"\nImportant Information"]
[null,null,null,null,null,null,null,"Bulls - At joining, new bulls become existing bulls"]
[null,null,null,null,null,null,null,"Calving - Monitor for calving problems.  Protect from wild dog attacks.  Be aware of metabolic issues such as grass tetany (hypomagnesemia) and hypocalcemia (downer cow syndrome)"]
[null,null,null,null,null,null,null,"Critical Mating Weight - 65% mature weight by joining (normally 350 - 400kg)"]
[null,null,null,null,null,null,null,"Heifers - Consider joining heifers 1 month before cows to allow for longer post-partum anoestrus. Heifers become cows after having a calf."]
[null,null,null,null,null,null,null,"Monitoring Buffalo fly - If more than 200 flies per animal or severe fly-worry, consider treatment. Be aware of buffalo fly resistance patterns in your area. It is very important to remove buffalo fly tags at the end of the control period (usually 12-16 weeks depending on product) to reduce selection pressure for resistance. Depending on where you live on the North Coast you will usually remove between April and May."]
[null,null,null,null,null,null,null,"Pasture and cattle body conditions in the dry - Consider selling cows/calves or early weaning of calves if insufficient feed"]
[null,null,null,null,null,null,null,"Pregnancy Tests: Cull empties"]
[null,null,null,null,null,null,null,"Purchasing bulls - Ensure bulls have had a Bull Breeding Soundness Evaluation (BBSE) performed prior to purchasing. Allow adequate time for new bulls to adjust and familiarise (acclimate) to region and socialise with any existing bulls."]
[null,null,null,null,null,null,null,"Vaccinations: Cows/Heifers - Botulism vaccination is optional but recommended especially if feeding silage"]
[null,null,null,null,null,null,null,"Vaccinations: Bulls - Vibriosis, pestivirus and botulism are optional but recommended"]
[null,null,null,null,null,null,null,"Weaning calves - May wean straight to sale if this fits with your business model"]

{"sheet":"Data","index":1,"n_rows":67,"n_cols":7,"rows_kept":67,"cut":false,"hidden":true,"merged":[]}
["Category","Activity","Date","Occurs how long before or after calving","Notes","Static","Month"]
["Bull - existing","Start feeding if required to reach target fat score 3 at joining",{"$f":"$C$40-(30*4)","v":"2021-03-03"},"4 months before",null,null,{"$f":"TEXT(C2,\"MMM\")","v":"Mar"}]
["Bull - existing","Remove Buffalo fly tags if using","2021-04-01",null,null,"Static",{"$f":"TEXT(C3,\"MMM\")","v":"Apr"}]
["Bull - existing","Remove Buffalo fly tags if using","2021-05-01",null,null,"Static","May"]
["Bull - existing","Worm test, stomach fluke test, liver fluke test. Treat if required","2021-03-01",null,"Treat if required","Static","Mar"]
["Bull - existing","BBSE and cull if sub-fertile",{"$f":"$C$40-(30*1)","v":"2021-06-01"},"1 month before ",null,null,"Jun"]
["Bull - existing","Worm test. Drench if required",{"$f":"$C$40+(30*2)","v":"2021-08-30"},"2 months after","Drench if required",null,"Aug"]
["Bull - existing","Booster vaccination for 7-in-1, vibriosis, pestivirus & botulism ",{"$f":"$C$40+(30*2)","v":"2021-08-30"},"2 months after",null,null,"Aug"]
["Bull - existing","3 day sickness vaccination","2021-10-01",null,null,"Static","Oct"]
["Bull - existing","Joining - heifers (see notes)",{"$f":"$C$40+(30*2)","v":"2021-08-30"},"2 months after","Consider joining heifers 1 month before cows to allow for longer post-partum anoestrus",null,"Aug"]
["Bull - existing","Joining - cows",{"$f":"$C$40+(30*3)","v":"2021-09-29"},"3 months after",null,null,"Sep"]
["Bull - existing","Remove from cows",{"$f":"$C$40+(36*5)","v":"2021-12-28"},"5 - 6 months after",null,null,"Dec"]
["Bull - existing","Monitor for buffalo fly  (see notes)","2021-12-01",null,null,"Static","Dec"]
["Bull - existing","Monitor for buffalo fly  (see notes)","2021-01-01",null,null,"Static","Jan"]
["Bull - existing","Monitor for buffalo fly  (see notes)","2021-02-01",null,null,null,"Feb"]
["Bull - existing","Monitor for buffalo fly  (see notes)","2021-03-01",null,"If more than 200 flies per animal or severe fly-worry, consider treatment.  ","Static","Mar"]
["Bull - new","Research new bulls and prepare for new bull purchase (see notes)",{"$f":"$C$40-(30*1)","v":"2021-06-01"},"1 month before ","Note: Ensure bulls have had a BBSE (Bull Breeding Soundness Evaluation) performed prior to purchasing",null,"Jun"]
["Bull - new","Purchase new bull (see notes)",{"$f":"C40","v":"2021-07-01"},"At calving","Acclimate to region and socialise with existing bulls",null,"Jul"]
["Bull - new","Primary vaccination for 7-in-1, vibriosis, pestivirus, botulism, 3 day sickness (see notes)",{"$f":"$C$40+(30*1)","v":"2021-07-31"},"1 month after","Vibriosis, pestivirus and botulism are optional but recommended",null,"Jul"]
["Bull - new","Worm test. Drench if required",{"$f":"$C$40+(30*2)","v":"2021-08-30"},"2 months after","Drench if required",null,"Aug"]
["Bull - new","Booster vaccination for 7-in-1, vibriosis, pestivirus, botulism, 3 day sickness (see notes)",{"$f":"$C$40+(30*2)","v":"2021-08-30"},"2 months after","At joining, Bull - new becomes Bull - existing",null,"Aug"]
["Bull - new","Joining - heifers (see notes)",{"$f":"$C$40+(30*2)","v":"2021-08-30"},"2 months after","Consider joining heifers 1 month before cows to allow for longer post-partum anoestrus",null,"Aug"]
["Bull - new","Joining - cows",{"$f":"$C$40+(30*3)","v":"2021-09-29"},"3 months after",null,null,"Sep"]
["Calves","Wean",{"$f":"$C$40-(30*4)","v":"2021-03-03"},"4 months before",null,null,"Mar"]
["Calves","Primary vaccination for 5-in-/7-in-1",{"$f":"$C$40+(30*4)","v":"2021-10-29"},"4 months after",null,null,"Oct"]
["Calves","Ear mark, NLIS and management tag",{"$f":"$C$40+(30*5)","v":"2021-11-28"},"5 months after",null,null,"Nov"]
["Calves","Castrate and dehorn male calves",{"$f":"$C$40+(30*5)","v":"2021-11-28"},"5 months after",null,null,"Nov"]
["Calves","Booster vaccination for 5-in-1/7-in-1",{"$f":"$C$40+(30*5)","v":"2021-11-28"},"5 months after",null,null,"Nov"]
["Cows","Dry years - assess breeder condition and consider early weaning if required.  Aim for fat score 2.5 - 3",{"$f":"$C$40-(30*6)","v":"2021-01-02"},"5 months before",null,null,"Jan"]
["Cows","Monitor for pinkeye and 3 day sickness","2021-12-01",null,null,"Static","Dec"]
["Cows","Monitor for pinkeye and 3 day sickness","2021-01-01",null,null,"Static","Jan"]
["Cows","Monitor for pinkeye and 3 day sickness","2021-02-01",null,null,"Static","Feb"]
["Cows","Pregnancy test (see notes)",{"$f":"$C$40-(30*4)","v":"2021-03-03"},"6 months before"," Cull empties.  ",null,"Mar"]
["Cows","Wean calves (see notes)",{"$f":"$C$40-(30*4)","v":"2021-03-03"},"4 months before","May wean straight to sale if fits with business model",null,"Mar"]
["Cows","Start feeding if required to reach target Fat score 3 at joining",{"$f":"$C$40-(30*4)","v":"2021-03-03"},"4 months before",null,null,"Mar"]
["Cows","Remove Buffalo fly tags if using","2021-04-01",null,null,"Static","Apr"]
["Cows","Remove Buffalo fly tags if using","2021-05-01",null,null,"Static","May"]
["Cows","Worm test, stomach fluke test, liver fluke test. Treat if required","2021-03-01",null,"Treat if required. ","Static","Mar"]
["Cows","Vaccinate.  7-in-1, botulism (see notes)",{"$f":"$C$40-(30*1)","v":"2021-06-01"},"1 month before ","Botulism vaccination is optional but recommended especially if feeding silage",null,"Jun"]
["Cows","Calving (see notes)",{"$f":"Calendar!E14","v":"2021-07-01"},"At calving","Monitor for calving problems.  Protect from wild dog attacks.  Be aware of metabolic issues such as grass tetany (hypomagnesemia) ",null,"Jul"]
["Cows","Joining",{"$f":"$C$40+(30*3)","v":"2021-09-29"},"3 months after",null,null,"Sep"]
["Cows","Monitor for buffalo fly (see notes)","2021-12-01",null,null,"Static","Dec"]
["Cows","Monitor for buffalo fly (see notes)","2021-01-01",null,null,"Static","Jan"]
["Cows","Monitor for buffalo fly (see notes)","2021-02-01",null,null,null,"Feb"]
["Cows","Monitor for buffalo fly (see notes)","2021-03-01",null,"If more than 200 flies per animal or severe fly-worry, consider treatment. ","Static","Mar"]
["Cows","Remove bull",{"$f":"$C$40+(36*5)","v":"2021-12-28"},"5-6 months after",null,null,"Dec"]
["Heifers","Start feeding if required to reach target critical mating weight (see notes)",{"$f":"$C$40-(30*4)","v":"2021-03-03"},"4 months before","65% mature weight by joining (normally 350 - 400kg)",null,"Mar"]
["Heifers","Remove Buffalo fly tags if using","2021-04-01",null,null,"Static","Apr"]
["Heifers","Remove Buffalo fly tags if using","2021-05-01",null,null,"static","May"]
["Heifers","Worm test, stomach fluke test, liver fluke test","2021-03-01",null,null,"Static","Mar"]
["Heifers","Joining (see notes)",{"$f":"$C$40-(30*2)","v":"2021-05-02"},"2 months after","Consider joining heifers 1 month before cows to allow for longer post-partum anoestrus",null,"May"]
["Heifers","Vaccinate.  7-in-1, botulism (see notes)",{"$f":"$C$40-(30*1)","v":"2021-06-01"},"1 month before ","Botulism vaccination is optional but recommended especially if feeding silage",null,"Jun"]
["Heifers","Calving",{"$f":"C40","v":"2021-07-01"},"At calving","After calving, becomes \"cow\" and managed same",null,"Jul"]
["Heifers","Pregnancy test",{"$f":"$C$40+(30*5)","v":"2021-11-28"},"5 months after","  Cull empties.  ",null,"Nov"]
["Heifers","Remove bull",{"$f":"$C$40+(36*5)","v":"2021-12-28"},"5-6 months after",null,null,"Dec"]
["Heifers","Monitor for buffalo fly (see notes)","2021-12-01",null,null,"Static",{"$f":"TEXT(C56,\"MMM\")","v":"Dec"}]
["Heifers","Monitor for buffalo fly (see notes)","2021-01-01",null,null,"Static","Jan"]
["Heifers","Monitor for buffalo fly (see notes)","2021-02-01",null,null,null,"Feb"]
["Heifers","Monitor for buffalo fly (see notes)","2021-03-01",null,"If more than 200 flies per animal or severe fly-worry, consider treatment. ","Static","Mar"]
["Pastures","Consider conserving fodder by baling excess pasture","2021-02-01",null,null,"Static","Feb"]
["Pastures","Sow winter feed (e.g. ryegrass, oats)","2021-03-01",null,null,"Static","Mar"]
["Pastures","Assess pasture levels",{"$f":"$C$40-(30*1)","v":"2021-06-01"},"1 month before ",null,null,"Jun"]
["Pastures","Select a calving pasture",{"$f":"$C$40-(30*1)","v":"2021-06-01"},"1 month before ",null,null,"Jun"]
["Pastures","Assess pasture levels and cattle body condition, particularly if dry (see notes)",{"$f":"$C$40+(30*3)","v":"2021-09-29"},"3 months after","Consider selling cows/calves or early weaning of calves if insufficient feed",null,"Sep"]
["Supplementary Feed","Consider supplementary feeding if there is a feed gap, or if breeder fat scores are below target",{"$f":"$C$40+(30*3)","v":"2021-09-29"},"3 months after,",null,null,"Sep"]
["Supplementary Feed","Consider supplementary feeding if there is a feed gap, or if breeder fat scores are below target",{"$f":"$C$40+(30*6)","v":"2021-12-28"}," 6 months after.",null,null,"Dec"]
["Yearling steers","Booster vaccination for 5-in-1 ",{"$f":"$C$40+(30*3)","v":"2021-09-29"},"3 months after",null,null,"Sep"]